[Event "Budapest Chess Festival 2024"]
[Site "Budapest"]
[Date "2024.05.25"]
[Round "3.16"]
[White "Prohaszka, Peter"]
[Black "Filip, Lucian-Ioan"]
[Result "1-0"]
[ECO "E00"]
[WhiteElo "2581"]
[BlackElo "2353"]
[Annotator "TA"]
[PlyCount "123"]
[EventDate "2024.05.20"]
[EventType "swiss"]
[EventCountry "HUN"]
[SourceTitle "playchess.com"]
[Source "ChessBase"]
[SourceQuality "1"]
[TimeControl "40/5400+30:1800+30"]

{[%evp 39,123,96,107,102,126,126,158,136,149,115,115,106,111,101,131,100,93,97,119,93,79,73,77,74,117,97,95,102,95,88,87,88,93,91,117,104,208,97,115,70,120,70,121,0,125,72,104,70,61,78,105,99,127,131,147,133,141,141,210,218,248,214,450,415,439,418,475,458,447,447,669,673,1100,1036,1452,1311,1169,1133,1189,1160,29972,29973,29981,29982,29983,29984]} 1. d4 {[%emt 0:00:33]} Nf6 {[%emt 0:00:37]} 2. c4 {[%emt 0:00:05]} e6 {[%emt 0:00:10]} 3. Bf4 {[%emt 0:00:06]} c5 {[%emt 0:08:23]} 4. d5 {[%emt 0:00:49]} d6 {[%emt 0:03:45]} 5. Nc3 {[%emt 0:01:41]} exd5 {[%emt 0:03:00]} 6. cxd5 {[%emt 0:00:10]} a6 {[%emt 0:01:38]} 7. a4 {[%emt 0:01:46]} Nh5 {[%emt 0:06:39]} 8. Bc1 {[%emt 0:36:22]} g6 {[%emt 0:00:49]} 9. e4 {[%emt 0:03:01]} Bg7 {[%emt 0:00:06]} 10. Be2 {[%emt 0:00:05]} Nf6 {[%emt 0:00:17]} 11. Nf3 {[%emt 0:00:48]} O-O {[%emt 0:19:48]} 12. Nd2 {[%emt 0:00:19]} Re8 {[%emt 0:01:08]} 13. O-O {[%emt 0:00:06]} Nbd7 {[%emt 0:00:06] 13...Nbd7 has lost popularity.} 14. Ra3 {[%emt 0:04:22]} g5 {[%emt 0:08:01] A77: Modern Benoni: Classical: 9...Re8 10 Nd2: 10...a6 and 10...Nbd7.} 15. Re1 {[%emt 0:00:50]} Ne5 {[%emt 0:00:12]} 16. Nf1 {[%emt 0:08:10]} h6 {[%emt 0:00:36]} 17. Qc2 {[%emt 0:04:40]} Ng6 {[%emt 0:03:08]} 18. Ne3 {[%emt 0:04:15]} Qc7 $146 {[%emt 0:11:44]} ({Predecessor:} 18... b6 19. Bd2 Ra7 20. f3 Bd7 21. Rb1 Qc7 22. b4 g4 23. Ncd1 gxf3 24. gxf3 Nh5 25. bxc5 bxc5 26. Ng2 f5 {1-0 Hall,J-Gallagher,J (2370) London Nat West Team Match 1985 (2)}) 19. a5 {[%emt 0:09:57]} b5 {[%emt 0:02:34]} 20. axb6 {[%emt 0:00:22]} Qxb6 {[%emt 0:00:02]} 21. Bd2 {[%emt 0:03:36]} Ne5 {[%emt 0:03:25]} 22. Rea1 {[%emt 0:01:01]} Re7 {[%emt 0:02:38]} 23. R1a2 {[%emt 0:04:20]} Rea7 {[%emt 0:04:09]} 24. Ra5 {[%emt 0:04:57]} Ne8 {[%emt 0:08:03]} 25. Nb1 {[%emt 0:03:12]} Nc7 {[%emt 0:05:34]} 26. Na3 {[%emt 0:00:16]} Qb8 {[%emt 0:00:22]} 27. Bc3 {[%emt 0:04:53]} Bd7 {[%emt 0:00:11]} 28. Nac4 {[%emt 0:02:16]} Nxc4 {[%emt 0:01:58]} 29. Bxc4 {[%emt 0:00:07]} Nb5 {[%emt 0:00:23]} 30. Bxg7 {[%emt 0:00:47]} Kxg7 {[%emt 0:00:02]} 31. Qd2 {[%emt 0:01:21]} Qb6 {[%emt 0:04:42]} 32. b4 {[%emt 0:00:35]} cxb4 {[%emt 0:01:04]} 33. Qxb4 {[%emt 0:00:08]} Qd4 {[%emt 0:00:22]} 34. Qb2 {[%emt 0:00:45]} Qxb2 {[%emt 0:01:15]} 35. Rxb2 {[%emt 0:00:01]} Kf6 {[%emt 0:00:19]} 36. f3 {[%emt 0:01:00]} Ke7 {[%emt 0:00:35]} 37. Kf2 {[%emt 0:00:37]} Rb7 {[%emt 0:00:42]} (37... h5 $16 38. g3 Nc3) 38. Rba2 {[%emt 0:00:39]} (38. Bxb5 $18 {and White stays clearly on top. And now Nf5+ would win.} Rbb8 39. Rba2 (39. Rxa6 $2 Rxa6 40. Bxa6 Rxb2+ 41. Kg3 Rb3 $19) 39... Bxb5 40. Nf5+ Kd7 41. Nxh6) 38... Nc7 {[%emt 0:00:21]} 39. Be2 {[%emt 0:00:24]} (39. Bxa6 $2 Rba7 40. e5 Rxa6 $19 (40... Nxa6 41. Nc4 $11)) 39... f6 {[%emt 0:00:15]} (39... h5 $14) 40. R5a3 {[%emt 0:00:00]} (40. Bxa6 $2 {loses.} Rba7 41. g4 Rxa6 $19 (41... Nxa6 42. Nc4 $11)) (40. g4 $1 $16) 40... Rb6 {[%emt 0:00:00]} (40... h5 $14) 41. Ra5 {[%emt 0:06:20]} ({White should play} 41. g4 $16) 41... Ra7 {[%emt 0:06:53]} (41... Rb7 $1 $11 {remains equal.}) 42. Bd3 {[%emt 0:01:26]} (42. g4 $142) 42... Ra8 {[%emt 0:01:06]} 43. Nc2 {[%emt 0:03:58]} Rab8 {[%emt 0:01:29]} 44. Ke3 {[%emt 0:02:12]} (44. Bxa6 $2 {perishes.} Rxa6 45. Rxa6 Nxa6 46. Rxa6 Rb2 $19) 44... Rb2 {[%emt 0:02:10]} 45. Bxa6 {[%emt 0:06:58]} Rxa2 {[%emt 0:05:02]} 46. Rxa2 {[%emt 0:00:03]} Nxa6 {[%emt 0:00:31]} 47. Rxa6 {[%emt 0:00:07]} Rb2 {[%emt 0:00:10]} 48. Kd2 {[%emt 0:01:28]} f5 {[%emt 0:00:07] [#]} (48... h5 $16 49. Kc3 Rb1) 49. Ra7 $1 $18 {[%emt 0:04:05]} fxe4 {[%emt 0:00:53]} 50. fxe4 {[%emt 0:00:13]} h5 $2 {[%emt 0:01:38]} (50... Kd8 {was called for.} 51. Ra8+ Ke7) 51. Kc3 $18 {[%emt 0:00:45]} Rb1 {[%emt 0:01:12]} 52. Ne3 {[%emt 0:00:25]} Kd8 {[%emt 0:02:29]} 53. Nc4 {[%emt 0:04:04]} Rc1+ {[%emt 0:00:15] [#]} 54. Kb3 $1 {[%emt 0:00:24]} Rb1+ {[%emt 0:00:23]} (54... Ke7 $142 55. e5 dxe5 56. Nxe5 Rb1+ 57. Kc3 Kd6 58. Nxd7 Kxd5 59. Nf6+ Ke6 60. Nxh5 Rh1) 55. Kc2 $18 {[%emt 0:00:27]} Rh1 {[%emt 0:10:23]} 56. Nxd6 {[%emt 0:00:34]} Rxh2 {[%emt 0:00:07]} 57. e5 {[%emt 0:00:13]} Rxg2+ {[%emt 0:00:05]} 58. Kd3 {[%emt 0:00:19]} Rg1 {[%emt 0:02:27]} 59. Nf7+ {[%emt 0:00:47]} Ke8 {[%emt 0:00:49]} 60. e6 {[%emt 0:01:01]} Rd1+ {[%emt 0:02:13]} 61. Ke4 {[%emt 0:01:50]} Re1+ {[%emt 0:00:25]} 62. Kf5 {[%emt 0:00:03]} 1-0

[Event "Budapest Chess Festival 2024"]
[Site "Budapest"]
[Date "2024.05.25"]
[Round "3.17"]
[White "Nasuta, Grzegorz"]
[Black "Dixit, Nikhil"]
[Result "1-0"]
[ECO "B31"]
[WhiteElo "2547"]
[BlackElo "2335"]
[Annotator "TA"]
[PlyCount "103"]
[EventDate "2024.05.20"]
[EventType "swiss"]
[EventCountry "HUN"]
[SourceTitle "playchess.com"]
[Source "ChessBase"]
[SourceQuality "1"]
[TimeControl "40/5400+30:1800+30"]

{[%evp 28,103,-39,-62,7,0,7,0,12,11,10,10,21,20,14,0,0,0,35,40,48,18,60,72,111,72,145,73,197,197,193,187,194,194,218,208,247,239,247,247,247,247,249,237,238,228,231,227,214,179,251,295,272,0,268,0,267,265,283,237,260,270,277,216,637,615,779,765,1220,1179,1079,896,29984,1381,2405,1557,1560,1510]} 1. e4 {[%emt 0:00:33]} c5 {[%emt 0:01:20]} 2. Nf3 {[%emt 0:00:07]} Nc6 {[%emt 0:00:06]} 3. Bb5 {[%emt 0:00:16]} g6 {[%emt 0:00:24]} 4. Bxc6 {[%emt 0:01:22]} dxc6 {[%emt 0:00:19]} 5. d3 {[%emt 0:00:12]} Qc7 {[%emt 0:00:07]} 6. h3 {[%emt 0:01:24] B31: Sicilian: 2...Nc6 3 Bb5 g6.} e5 {[%emt 0:00:47]} 7. O-O {[%emt 0:02:14]} h6 $146 {[%emt 0:00:15]} ({Predecessor:} 7... Nf6 8. a3 Nh5 9. Qe1 a5 10. Nc3 a4 11. Be3 Bd6 12. Ne2 O-O 13. Qc3 b6 {0-1 Hansen,E (2610)-Caruana,F (2804) Titled Tuesday intern op 27th Feb Late blitz 2024 (10)}) 8. Be3 {[%emt 0:08:41]} Be6 {[%emt 0:04:11]} 9. Nbd2 {[%emt 0:18:07]} Nf6 {[%emt 0:07:57]} 10. a3 {[%emt 0:22:18]} g5 {[%emt 0:12:28]} 11. Nh2 {[%emt 0:02:31]} Rg8 {[%emt 0:02:39]} 12. g4 {[%emt 0:06:03]} a5 {[%emt 0:05:37]} 13. Qe2 {[%emt 0:01:03]} Nd7 {[%emt 0:02:19]} 14. Rfd1 {[%emt 0:02:37]} h5 {[%emt 0:06:16]} 15. Ndf1 {[%emt 0:07:10]} h4 {[%emt 0:01:57]} (15... hxg4 $15 16. Nxg4 O-O-O) 16. Bd2 $11 {[%emt 0:01:34]} a4 {[%emt 0:04:17]} 17. Ne3 {[%emt 0:00:20]} b5 {[%emt 0:02:25]} 18. Nf3 {[%emt 0:02:47]} f6 {[%emt 0:02:36]} 19. Nf5 {[%emt 0:00:07]} Nb6 {[%emt 0:03:09]} 20. Be3 {[%emt 0:00:55]} O-O-O {[%emt 0:03:29]} 21. Qe1 {[%emt 0:02:09]} Kb7 {[%emt 0:03:04]} 22. Qc3 {[%emt 0:02:10]} Nd7 {[%emt 0:01:03]} 23. b3 {[%emt 0:06:14]} Ra8 {[%emt 0:01:36]} 24. Nd2 {[%emt 0:03:04]} Kc8 {[%emt 0:03:07]} 25. Qb2 {[%emt 0:03:34]} Qb8 {[%emt 0:09:56]} 26. Rdb1 {[%emt 0:00:32]} Qc7 {[%emt 0:03:31] [#]} ({Black should try} 26... Nb6) 27. c4 {[%emt 0:01:54]} (27. bxa4 $142 $1 bxa4 28. Qc1) 27... Rb8 {[%emt 0:04:22]} (27... axb3 $16 {might work better.} 28. Nxb3 Kd8) 28. cxb5 $18 {[%emt 0:01:06]} Rxb5 {[%emt 0:00:42]} 29. Qc2 {[%emt 0:00:30]} axb3 {[%emt 0:02:33]} 30. Nxb3 {[%emt 0:00:03]} Qb8 {[%emt 0:01:02]} 31. Nd2 {[%emt 0:00:53]} Kc7 {[%emt 0:01:09]} 32. a4 {[%emt 0:00:40]} Rxb1+ {[%emt 0:02:12]} 33. Rxb1 {[%emt 0:00:07]} ({Don't take} 33. Nxb1 Qb3 34. Qd2 Bxf5 35. gxf5 (35. exf5 Be7 $16) 35... Be7) 33... Qa7 {[%emt 0:00:51]} 34. Nc4 {[%emt 0:00:43]} Bxf5 {[%emt 0:01:37]} 35. exf5 {[%emt 0:00:07]} Be7 {[%emt 0:00:25]} 36. a5 {[%emt 0:02:27]} Rb8 {[%emt 0:00:23]} 37. Ra1 {[%emt 0:00:35]} Qa6 {[%emt 0:01:45]} 38. Qa2 {[%emt 0:00:15]} Rb4 {[%emt 0:00:35]} (38... Rb7 $142 39. Nd2 Rb8) 39. Bd2 $18 {[%emt 0:00:40]} Rb8 {[%emt 0:00:19]} 40. Be3 {[%emt 0:00:00]} Rb4 {[%emt 0:00:00]} 41. Bd2 {[%emt 0:13:16]} Rb8 $1 {[%emt 0:02:57]} 42. Kg2 {[%emt 0:05:39]} Bf8 {[%emt 0:02:27]} 43. Be1 {[%emt 0:00:41]} Be7 {[%emt 0:01:23]} 44. Rd1 {[%emt 0:03:54]} Kd8 {[%emt 0:06:27]} 45. Ne3 {[%emt 0:01:49]} Nf8 $2 {[%emt 0:02:03]} (45... c4 46. dxc4 (46. Qxc4 Qxc4 47. Nxc4 Bc5 $16) (46. Nxc4 Qb5 $18) 46... Bc5) 46. Qf7 $18 {[%emt 0:04:08]} Qb5 {[%emt 0:02:16]} 47. Nc4 {[%emt 0:01:32]} Qa4 {[%emt 0:02:19]} 48. Rc1 {[%emt 0:03:18]} Qa2 {[%emt 0:02:15]} 49. Bc3 {[%emt 0:00:46]} Qe2 {[%emt 0:07:21]} 50. Ne3 {[%emt 0:01:37]} (50. a6 $142 Qa2 51. Ba5+ Kd7 52. Nxe5+ fxe5 53. Qxa2 Ke8 54. a7 Ra8 55. Bb6) 50... Ra8 {[%emt 0:01:14]} 51. Re1 {[%emt 0:00:23]} Qxd3 {[%emt 0:00:31]} 52. Rd1 {[%emt 0:00:04]} 1-0

[Event "Budapest Chess Festival 2024"]
[Site "Budapest"]
[Date "2024.05.25"]
[Round "3.18"]
[White "Milosevic, Milos"]
[Black "Ivanisevic, Ivan"]
[Result "0-1"]
[ECO "E04"]
[WhiteElo "2328"]
[BlackElo "2537"]
[Annotator "TA"]
[PlyCount "62"]
[EventDate "2024.05.20"]
[EventType "swiss"]
[EventCountry "HUN"]
[SourceTitle "playchess.com"]
[Source "ChessBase"]
[SourceQuality "1"]
[TimeControl "40/5400+30:1800+30"]

{[%evp 18,62,-16,-40,-35,-47,-47,-52,-46,-97,-84,-107,-99,-197,-197,-218,-218,-218,-222,-217,-193,-196,-215,-239,-250,-282,-282,-313,-322,-323,-318,-388,-393,-456,-436,-408,-392,-29990,-29991,-29991,-29985,-29992,-29993,-29993,-29994,-29994,-29995]} 1. d4 {[%emt 0:00:31]} Nf6 {[%emt 0:00:50]} 2. Nf3 {[%emt 0:00:08]} e6 {[%emt 0:04:16]} 3. c4 {[%emt 0:00:14]} d5 {[%emt 0:05:08]} 4. g3 {[%emt 0:02:03]} dxc4 {[%emt 0:01:39]} 5. Bg2 {[%emt 0:00:23]} Nbd7 {[%emt 0:01:01]} 6. Qa4 {[%emt 0:00:44]} a6 {[%emt 0:03:24]} 7. Qxc4 {[%emt 0:00:04]} b5 {[%emt 0:00:04]} 8. Qc6 {[%emt 0:00:59]} Rb8 {[%emt 0:00:23]} 9. O-O {[%emt 0:00:14]} Bb7 {[%emt 0:00:10]} 10. Qc2 {[%emt 0:00:11]} c5 {[%emt 0:00:11]} 11. Bg5 {[%emt 0:03:20]} Rc8 {[%emt 0:02:07]} 12. dxc5 {[%emt 0:01:12]} Bxc5 {[%emt 0:00:49] Black is slightly better.} 13. Qd3 {[%emt 0:00:54]} (13. Qd2 $15) 13... Qb6 $17 {[%emt 0:00:45] Strongly threatening ...Ng4.} 14. Nc3 {[%emt 0:03:12]} Ng4 {[%emt 0:05:08][%cal Rg4f2]} 15. e3 {[%emt 0:05:09] [#]} (15. Nd1 $17 {keeps fighting.}) 15... Bxf3 $1 $19 {[%emt 0:08:19]} 16. Bxf3 {[%emt 0:00:04]} Nge5 {[%emt 0:00:06][%csl LRd3,LRf3] A dynamic duo of knights.} 17. Qe2 {[%emt 0:01:15]} h6 {[%emt 0:00:13]} 18. Bf4 {[%emt 0:00:21]} Nxf3+ {[%emt 0:00:14]} 19. Qxf3 {[%emt 0:00:04]} g5 {[%emt 0:00:57]} 20. Rfd1 {[%emt 0:00:33][%cal Od1d7]} gxf4 {[%emt 0:02:04]} 21. Qxf4 {[%emt 0:00:05]} Qc7 {[%emt 0:02:03]} 22. Qg4 {[%emt 0:00:27]} Nf6 {[%emt 0:02:29]} 23. Qf3 {[%emt 0:01:20]} Qe5 {[%emt 0:06:01]} 24. Qb7 {[%emt 0:02:10]} O-O {[%emt 0:00:07]} 25. Qxa6 {[%emt 0:00:09]} b4 {[%emt 0:00:06]} 26. Na4 {[%emt 0:00:10]} Bxe3 {[%emt 0:02:13]} 27. fxe3 $2 {[%emt 0:00:17] [#]} (27. Qe2 $19 Bd4 28. Qxe5 Bxe5 29. Rd2) 27... Qxe3+ {[%emt 0:00:08] Black mates.} 28. Kh1 {[%emt 0:00:11]} Qf3+ {[%emt 0:02:17]} 29. Kg1 {[%emt 0:00:04]} Rc2 {[%emt 0:00:07][%csl Gc2][%cal Rf3g2]} 30. Qf1 {[%emt 0:00:04]} Qe3+ {[%emt 0:00:04]} 31. Kh1 {[%emt 0:00:03]} Ng4 {White did not feel at home in the position after the opening.   Weighted Error Value: White=0.44/Black=0.01 (flawless) .  Mistake:       	White=3     	---        OK:         	White=4     	Black=8      Best:        	White=1     	Black=3      Strong:       	---       	Black=1} 0-1

[Event "Budapest Chess Festival 2024"]
[Site "Budapest"]
[Date "2024.05.25"]
[Round "3.19"]
[White "Mihok, Oliver"]
[Black "Borocz, Istvan"]
[Result "1/2-1/2"]
[ECO "A04"]
[WhiteElo "2528"]
[BlackElo "2324"]
[Annotator "TA"]
[PlyCount "89"]
[EventDate "2024.05.20"]
[EventType "swiss"]
[EventCountry "HUN"]
[SourceTitle "playchess.com"]
[Source "ChessBase"]
[SourceQuality "1"]
[TimeControl "40/5400+30:1800+30"]

{[%evp 9,89,26,38,31,46,79,55,47,70,41,104,87,213,205,215,190,147,106,95,82,87,100,98,104,197,179,475,604,656,685,889,352,340,352,344,349,332,332,334,354,385,251,256,243,393,390,383,349,370,379,358,81,60,8,8,8,0,-92,-70,-85,-90,-91,-8,-8,-8,-8,-8,-8,-8,-8,-8,-84,-68,-69,-51,-49,0,-68,0,-50,-71,-67]} 1. Nf3 {[%emt 0:00:34]} Nc6 {[%emt 0:05:06]} 2. d4 {[%emt 0:00:39]} d5 {[%emt 0:00:24]} 3. g3 {[%emt 0:00:15]} Bf5 {[%emt 0:03:59]} 4. Bg2 {[%emt 0:00:12]} Qd7 {[%emt 0:01:04]} 5. O-O {[%emt 0:02:42]} Bh3 {[%emt 0:04:50]} 6. Bxh3 {[%emt 0:02:06]} Qxh3 {[%emt 0:00:25] [#]} 7. c4 $1 {[%emt 0:00:04]} e6 {[%emt 0:02:12]} 8. Nc3 {[%emt 0:09:41] White is slightly better.} O-O-O {[%emt 0:07:38]} 9. Bf4 {[%emt 0:34:56]} f6 {[%emt 0:22:22]} (9... Nge7 $14) 10. Nb5 $16 {[%emt 0:02:49] Qa4 would now be deadly.} g5 {[%emt 0:09:01]} (10... Bd6 $16) 11. Bxc7 $18 {[%emt 0:10:54]} Rd7 {[%emt 0:01:48]} 12. Rc1 {[%emt 0:08:49]} (12. cxd5 $6 exd5 13. Qa4 Rxc7 $16) 12... Rxc7 {[%emt 0:03:21]} 13. cxd5 {[%emt 0:06:16]} exd5 {[%emt 0:00:51][%cal Oa7a6] [#]} 14. b4 $1 {[%emt 0:00:18]} a6 {[%emt 0:12:34]} 15. Nxc7 {[%emt 0:01:04]} Kxc7 {[%emt 0:00:06]} 16. Qb3 {[%emt 0:01:58][%cal Ob4b5]} Nge7 {[%emt 0:06:52] [#]} (16... Qe6 $16) 17. a4 $1 {[%emt 0:00:43][%mdl 1024] White has strong compensation.} (17. b5 axb5 18. Qxb5 Qe6 $14) 17... g4 $2 {[%emt 0:08:23]} (17... Kd8 18. b5 axb5) 18. Nh4 {[%emt 0:03:42] And now b5 would win.} Ng6 {[%emt 0:02:25]} 19. Ng2 {[%emt 0:00:28][%cal Ob4b5]} Kb8 {[%emt 0:02:03]} 20. Qxd5 $2 {[%emt 0:02:34]} (20. Rxc6 bxc6 21. b5 cxb5 22. axb5 (22. Qxd5 Ba3 $18)) 20... Bxb4 {[%emt 0:00:19]} 21. Rxc6 $1 {[%emt 0:03:56] Threatening mate with Rb6.} Ne7 {[%emt 0:00:02][%cal Bg6e7,Be7c6,Bc6e5][%mdl 32]} 22. Qc4 {[%emt 0:00:54]} Nxc6 {[%emt 0:00:04]} 23. d5 {[%emt 0:00:07]} Ne5 {[%emt 0:05:00]} 24. Qxb4 {[%emt 0:00:18] Rb1 would kill now.} Qh6 {[%emt 0:00:34]} 25. Nf4 {[%emt 0:01:43]} Qf8 {[%emt 0:00:26]} 26. d6 {[%emt 0:00:53]} Qf7 {[%emt 0:00:12]} (26... Qc8 $142 27. Nd5 Qc4) 27. Rc1 {[%emt 0:01:44]} Rc8 {[%emt 0:00:22] Wards off Rc7} 28. Rxc8+ {[%emt 0:00:23]} Kxc8 {[%emt 0:00:01][%mdl 4096] Endgame. KQN-KQN} 29. Qc5+ {[%emt 0:00:19]} Kb8 {[%emt 0:00:53]} 30. a5 $2 {[%emt 0:02:19]} (30. Nd5 $18 {and White stays clearly on top.}) 30... Qc4 $16 {[%emt 0:00:39]} 31. Qb6 {[%emt 0:01:23]} (31. Qd5 $14) 31... Qc1+ $11 {[%emt 0:00:24]} 32. Kg2 {[%emt 0:00:00] Strongly threatening Nd5. Dancing on a razor blade.} Qc6+ {[%emt 0:00:07]} 33. Kg1 {[%emt 0:01:05]} (33. Qxc6 $11 Nxc6 34. f3) 33... Qxb6 $17 {[%emt 0:01:56]} 34. axb6 {[%emt 0:00:04] KN-KN} Kc8 {[%emt 0:00:01]} 35. Nd5 {[%emt 0:00:51]} Kd7 {[%emt 0:00:20]} ({But not} 35... Nd7 $6 36. Kf1 $11) (35... f5 $17 {...Kd7 is the strong threat.} 36. f4 gxf3) 36. Nxf6+ $11 {[%emt 0:00:20]} Kxd6 {[%emt 0:00:05] White must now prevent ...Ke6.} 37. Kf1 $1 {[%emt 0:00:33]} (37. Nxh7 $2 {loses.} a5 38. Nf6 Kc5 (38... a4 $2 39. Ne4+ Kc6 40. Nc3 $19) 39. Ne4+ Kb4 $19) 37... a5 {[%emt 0:00:32]} 38. Ke1 $1 {[%emt 0:00:12]} Kc5 {[%emt 0:00:27]} 39. Kd2 {[%emt 0:00:34]} Kxb6 {[%emt 0:00:31] aiming for ...Kc5.} 40. Kc3 {[%emt 0:00:00]} (40. Kc2 $11 {keeps the balance.}) 40... Kc5 $17 {[%emt 0:00:00]} 41. Ne4+ {[%emt 0:04:19]} Kd5 {[%emt 0:05:32]} 42. Nf6+ {[%emt 0:01:35]} Kc5 {[%emt 0:06:41]} (42... Kc6 $5) 43. Ne4+ {[%emt 0:00:17]} Kd5 {[%emt 0:04:15]} 44. Nf6+ Kc6 45. f4 {Black defended with fortune.   Weighted Error Value: White=0.38/Black=0.35.  Missed win:     	White=1     	---        Mistake:       	White=3     	Black=6      Inaccurate:     	White=2     	---        OK:         	White=14    	Black=13     Best:        	White=5     	Black=6      Strong:       	White=4     	---} 1/2-1/2

[Event "Budapest Chess Festival 2024"]
[Site "Budapest"]
[Date "2024.05.25"]
[Round "3.20"]
[White "Bodrogi, Bendeguz"]
[Black "Popovic, Dusan"]
[Result "0-1"]
[ECO "A04"]
[WhiteElo "2348"]
[BlackElo "2486"]
[Annotator "RC"]
[PlyCount "78"]
[EventDate "2024.05.20"]
[EventType "swiss"]
[EventCountry "HUN"]
[SourceTitle "playchess.com"]
[Source "ChessBase"]
[SourceQuality "1"]
[TimeControl "40/5400+30:1800+30"]

1. Nf3 {[%emt 0:00:37]} g6 {[%emt 0:00:34]} 2. g3 {[%emt 0:00:27]} Bg7 {[%emt 0:00:04]} 3. d4 {[%emt 0:00:13]} d6 {[%emt 0:00:09]} 4. Bg2 {[%emt 0:00:29]} Nd7 {[%emt 0:00:23]} 5. O-O {[%emt 0:00:17]} e5 {[%emt 0:00:05]} 6. dxe5 {[%emt 0:00:16]} dxe5 {[%emt 0:00:04]} 7. Nc3 {[%emt 0:00:19]} Ngf6 {[%emt 0:00:28]} 8. a4 {[%emt 0:01:03]} O-O {[%emt 0:00:19]} 9. a5 {[%emt 0:02:02]} Rb8 {[%emt 0:04:22]} 10. Nb5 {[%emt 0:13:49]} a6 {[%emt 0:00:09]} 11. Na7 {[%emt 0:11:23]} e4 {[%emt 0:05:41]} 12. Nd4 {[%emt 0:00:17]} Qe7 {[%emt 0:02:56]} 13. c3 {[%emt 0:05:04]} Nc5 {[%emt 0:23:56]} 14. Nxc8 {[%emt 0:05:23]} Rbxc8 {[%emt 0:02:52]} 15. Qc2 {[%emt 0:05:04]} Rcd8 {[%emt 0:02:19]} 16. Rd1 {[%emt 0:02:41]} Nd5 {[%emt 0:09:31]} 17. Nb3 {[%emt 0:05:11]} Nxb3 {[%emt 0:05:17]} 18. Qxb3 {[%emt 0:00:23]} c6 {[%emt 0:00:02]} 19. Ra4 {[%emt 0:09:20]} f5 {[%emt 0:05:55]} 20. Be3 {[%emt 0:01:57]} Qf7 {[%emt 0:07:04]} 21. Bc5 {[%emt 0:04:12]} Rfe8 {[%emt 0:04:45]} 22. Qc2 {[%emt 0:09:02]} Rd7 {[%emt 0:06:13]} 23. e3 {[%emt 0:03:08]} h5 {[%emt 0:01:32]} 24. Bf1 {[%emt 0:02:30]} h4 {[%emt 0:01:52]} 25. Raa1 {[%emt 0:06:04]} Bf6 {[%emt 0:00:11]} 26. c4 {[%emt 0:00:47]} Nc7 {[%emt 0:00:34]} 27. Rxd7 {[%emt 0:01:30]} Qxd7 {[%emt 0:00:04]} 28. Rd1 {[%emt 0:01:38]} Qg7 {[%emt 0:02:37]} 29. Bd6 {[%emt 0:02:10]} Ne6 {[%emt 0:00:34]} 30. b4 {[%emt 0:02:49]} Ng5 {[%emt 0:00:10]} 31. b5 {[%emt 0:00:38]} Qh6 {[%emt 0:03:02]} 32. bxc6 {[%emt 0:00:55]} hxg3 {[%emt 0:02:08]} 33. fxg3 {[%emt 0:02:39]} Nf3+ {[%emt 0:00:38]} 34. Kf2 {[%emt 0:00:26]} Nxh2 {[%emt 0:02:10]} 35. Bf4 {[%emt 0:01:44]} g5 {[%emt 0:02:09]} 36. cxb7 {[%emt 0:00:53]} gxf4 {[%emt 0:01:09]} 37. c5 {[%emt 0:00:24]} fxg3+ {[%emt 0:04:32]} 38. Kg2 {[%emt 0:00:06]} Nxf1 {[%emt 0:01:07]} 39. Qc4+ {[%emt 0:00:42]} Kf8 {[%emt 0:00:30]} 0-1

[Event "Budapest Chess Festival 2024"]
[Site "Budapest"]
[Date "2024.05.26"]
[Round "4.1"]
[White "Dragnev, Valentin"]
[Black "Vetoshko, Volodymyr"]
[Result "1/2-1/2"]
[ECO "C70"]
[WhiteElo "2566"]
[BlackElo "2505"]
[Annotator "TA"]
[PlyCount "51"]
[EventDate "2024.05.20"]
[EventType "swiss"]
[EventCountry "HUN"]
[SourceTitle "playchess.com"]
[Source "ChessBase"]
[SourceQuality "1"]
[TimeControl "40/5400+30:1800+30"]

{[%evp 9,51,49,35,39,49,29,39,24,38,1,0,0,50,37,35,30,37,34,46,39,57,52,40,41,41,18,30,16,26,22,50,0,0,0,0,0,0,0,0,0,0,0,0,0]} 1. e4 {[%emt 0:00:33]} e5 {[%emt 0:00:40]} 2. Nf3 {[%emt 0:00:07]} Nc6 {[%emt 0:00:06]} 3. Bb5 {[%emt 0:00:33]} a6 {[%emt 0:00:06]} 4. Ba4 Nge7 {[%emt 0:00:27]} 5. c3 {[%emt 0:00:53]} Ng6 {[%emt 0:01:07]} 6. d4 {[%emt 0:00:15]} exd4 {[%emt 0:00:37]} 7. Nxd4 {[%emt 0:00:09]} Bc5 {[%emt 0:00:45]} 8. Be3 {[%emt 0:00:08] Threatens to win with Nxc6. White is slightly better.} Nce5 {[%emt 0:00:32][%cal Bc6e5,Be5g4,Bg4e3][%mdl 32]} 9. O-O {[%emt 0:04:52]} O-O {[%emt 0:01:10]} 10. Bb3 {[%emt 0:14:47]} d5 {[%emt 0:13:00]} 11. Nd2 {[%emt 0:18:47]} Ng4 {[%emt 0:13:15]} 12. exd5 {[%emt 0:09:13]} Qd6 {[%emt 0:14:32]} 13. N2f3 {[%emt 0:02:42]} Nxe3 {[%emt 0:19:33]} 14. fxe3 {[%emt 0:00:42]} Bd7 {[%emt 0:01:11]} 15. Qc2 {[%emt 0:07:06]} Rae8 {[%emt 0:02:37]} 16. Rae1 {[%emt 0:02:26]} Re7 {[%emt 0:03:26]} 17. Qf2 {[%emt 0:04:34]} Ne5 {[%emt 0:08:08]} 18. Nxe5 {[%emt 0:04:44]} Rxe5 {[%emt 0:00:11]} 19. Qf4 {[%emt 0:01:06]} Qe7 {[%emt 0:06:26] [#]} 20. Ne6 $1 {[%emt 0:10:25]} Rxe3 $1 $11 {[%emt 0:00:33] The position is equal.} 21. Rxe3 {[%emt 0:00:37]} fxe6 {[%emt 0:00:10]} 22. Qe5 {[%emt 0:06:47][%cal Rd5e6]} Bxe3+ {[%emt 0:02:20]} 23. Qxe3 {[%emt 0:00:01][%cal Rd5e6]} Rxf1+ {[%emt 0:00:16]} 24. Kxf1 {[%emt 0:00:02][%cal Rd5e6]} Qf7+ {[%emt 0:01:00]} 25. Qf2 {[%emt 0:01:02]} b6 {[%emt 0:02:41]} 26. dxe6 {[%emt 0:02:02] Weighted Error Value: White=0.10 (very precise) /Black=0.05 (flawless) .  Mistake:       	White=1     	Black=1      Inaccurate:     	White=1     	Black=1      OK:         	White=4     	Black=9      Best:        	---       	Black=2      Strong:       	---       	Black=1} 1/2-1/2